{"text_format":"1","workbook":"xlsx","n_sheets":1,"sheets":["R08インド現調③(R80127)   "],"not_rendered":{"charts":0,"images":0,"macros":0,"external_links":0,"defined_names":1,"comments":0,"pivot_tables":0},"unopened":[],"bounds":{"document_bytes":16777216,"sheet_cells":100000,"rows_first":2000,"rows_last":500,"rows_between":2000,"halvings":0,"cell_chars":16384,"cell_head_chars":4096},"cells_cut":0,"cells_raw":0,"read":"whole","date_system":"1900"}

{"sheet":"R08インド現調③(R80127)   ","index":0,"n_rows":105,"n_cols":19,"rows_kept":105,"cut":false,"hidden":false,"merged":[[89,7,89,8],[63,18,68,18],[69,18,75,18],[76,18,81,18],[82,18,87,18],[40,18,45,18],[46,18,50,18],[51,18,56,18],[10,18,14,18],[88,18,93,18],[94,18,98,18],[0,16,0,17],[1,0,1,17],[3,0,4,0],[3,1,4,1],[3,2,4,2],[3,3,3,17],[57,18,62,18],[3,18,4,18],[4,4,4,5],[4,11,4,17],[5,18,9,18],[15,18,19,18],[20,18,26,18],[27,18,33,18],[34,18,39,18]]}
[null,null,null,null,null,null,null,null,null,null,null,null,null,null,null,null,"別紙１"]
["　　　　　　　　　　　　　　　　　令和８年度インド現地調査（第３次）・遺骨収集（第１次）派遣　　　　　"]
[]
["日次","月日","曜日","行動及び概要",null,null,null,null,null,null,null,null,null,null,null,null,null,null,"合計車両数"]
[null,null,null,"時間","都市（空港）",null,null,null,null,null,null,"その他の人員の移動等"]
[]
[null,null,null,null,null,null,null,"前泊"]
[1,"2027-02-07",{"$f":"WEEKDAY(B8)","v":1},"15:00:00","ホテル集合",null,null,"【結団式及び説明会】ホテル会議室"]
[]
[null,null,null,null,null,null,null,null,null,null,null,null,null,null,null,null,"都内","泊"]
[null,null,null,null,null,null,null,null,null,null,null,null,null,null,null,null,null,null,"空港まで中型バス×送迎１台　　　　　　　　　ミニバス（10人乗り）×送迎１台"]
[null,null,null,"AM","羽田","発",null,"(NH〇〇)"]
[2,{"$f":"MAX($B$7:B12)+1","v":"2027-02-08"},{"$f":"WEEKDAY(B13)","v":2},"PM","デリー","着"]
[]
[null,null,null,null,null,null,null,null,null,null,null,null,null,null,null,null,"デリー","泊"]
[null,null,null,null,null,null,null,null,null,null,null,null,null,null,null,null,null,null,"ミニバス（10人乗り）×終日１台"]
[null,null,null,null,null,null,null,"【インド外務省東アジア局表敬訪問及び打ち合せ】"]
[{"$f":"MAX($A$7:A17)+1","v":3},{"$f":"MAX($B$7:B17)+1","v":"2027-02-09"},{"$f":"WEEKDAY(B18)","v":3},"終日","デリー",null,null,"【在インド日本国大使館表敬訪問及び打ち合せ】"]
[null,null,null,null,null,null,null,"【物品買い出し】"]
[null,null,null,null,null,null,null,null,null,null,null,null,null,null,null,null,"デリー","泊"]
[null,null,null,null,null,null,null,null,null,null,null,"【AnSI要員】",null,null,null,null,null,null,"空港までミニバス（10人乗り）×送迎１台　　　　　　　　　　　　　　　　　　　　ディマプール：車両（５人乗り）×半日４台"]
[null,null,null,"AM","デリー","発",null,"（インド国内線）",null,null,null,"AM","コルカタ","発"]
[null,null,null,"PM","ディマプール","着",null,"AnSI（1名）と合流",null,null,null,"PM","ディマプール","着"]
[{"$f":"MAX($A$7:A22)+1","v":4},{"$f":"MAX($B$7:B22)+1","v":"2027-02-10"},{"$f":"WEEKDAY(B24)","v":4},"PM","ディマプール","発","（車）約2時間"]
[null,null,null,null,"コヒマ","着"]
[null,null,null,null,null,null,null,"【コヒマ日本遺骨収集チーム打ち合せ】"]
[null,null,null,null,null,null,null,null,null,null,null,null,null,null,null,null,"コヒマ","泊"]
[null,null,null,null,null,null,null,null,null,null,null,null,null,null,null,null,null,null,"車両（５人乗り）×終日４台"]
[null,null,null,"AM","ホテル","発"]
[null,null,null,null,"州政府","着","（車）約0.5時間"]
[{"$f":"MAX($A$7:A28)+1","v":5},{"$f":"MAX($B$7:B27)+1","v":"2027-02-11"},{"$f":"WEEKDAY(B31)","v":5},null,"州政府","発",null,"【ナガランド州政府表敬訪問及び打ち合せ】"]
[null,null,null,"PM","エコパーク＜106＞","着","（車）約1時間"]
[null,null,null,null,"エコパーク＜106＞","発"]
[null,null,null,null,"ホテル","着",null,null,null,null,null,null,null,null,null,null,"コヒマ","泊"]
[null,null,null,null,null,null,null,null,null,null,null,null,null,null,null,null,null,null,"車両（５人乗り）×終日４台"]
[null,null,null,"AM","ホテル","発","（車）約１時間"]
[{"$f":"MAX($A$7:A36)+1","v":6},{"$f":"MAX($B$7:B36)+1","v":"2027-02-12"},{"$f":"WEEKDAY(B37)","v":6},null,"マイルストーン","着",null,"【現地調査及び試掘】"]
[null,null,null,"PM","マイルストーン","発"]
[null,null,null,null,"ホテル","着"]
[null,null,null,null,null,null,null,null,null,null,null,null,null,null,null,null,"コヒマ","泊"]
[null,null,null,null,null,null,null,null,null,null,null,null,null,null,null,null,null,null,"車両（５人乗り）×終日４台"]
[null,null,null,"AM","ホテル","発","（車）約１時間"]
[{"$f":"MAX($A$7:A42)+1","v":7},{"$f":"MAX($B$7:B42)+1","v":"2027-02-13"},{"$f":"WEEKDAY(B43)","v":7},null,"マイルストーン","着",null,"【現地調査及び試掘】"]
[null,null,null,"PM","マイルストーン","発"]
[null,null,null,null,"ホテル","着"]
[null,null,null,null,null,null,null,null,null,null,null,null,null,null,null,null,"コヒマ","泊"]
[null,null,null,null,null,null,null,null,null,null,null,null,null,null,null,null,null,null,"車両（５人乗り）×終日４台"]
[]
[{"$f":"MAX($A$7:A48)+1","v":8},{"$f":"MAX($B$7:B47)+1","v":"2027-02-14"},{"$f":"WEEKDAY(B49)","v":1},"終日","資料整理、聞き取り調査",null,null,"【ホテルにて資料整理等】"]
[]
[null,null,null,null,null,null,null,null,null,null,null,null,null,null,null,null,"コヒマ","泊"]
[null,null,null,null,null,null,null,null,null,null,null,null,null,null,null,null,null,null,"車両（５人乗り）×終日４台"]
[null,null,null,"AM","ホテル","発","（車）約１時間"]
[{"$f":"MAX($A$7:A53)+1","v":9},{"$f":"MAX($B$7:B53)+1","v":"2027-02-15"},{"$f":"WEEKDAY(B54)","v":2},null,"二本木高地","着",null,"【現地調査及び試掘】"]
[null,null,null,"PM","二本木高地","発"]
[null,null,null,null,"ホテル","着"]
[null,null,null,null,null,null,null,null,null,null,null,null,null,null,null,null,"コヒマ","泊"]
[null,null,null,null,null,null,null,null,null,null,null,null,null,null,null,null,null,null,"車両（５人乗り）×終日４台"]
[null,null,null,"AM","ホテル","発","（車）約１時間"]
[{"$f":"MAX($A$7:A57)+1","v":10},{"$f":"MAX($B$7:B57)+1","v":"2027-02-16"},{"$f":"WEEKDAY(B60)","v":3},null,"アラズラ","着",null,"【現地調査及び試掘】"]
[null,null,null,"PM","アラズラ","発"]
[null,null,null,null,"ホテル","着"]
[null,null,null,null,null,null,null,null,null,null,null,null,null,null,null,null,"コヒマ","泊"]
[null,null,null,"AM","ホテル","発","（車）約１時間",null,null,null,null,null,null,null,null,null,null,null,"車両（５人乗り）×終日４台"]
[null,null,null,null,"アラズラ","着"]
[null,null,null,null,"アラズラ","発"]
[{"$f":"MAX($A$7:A63)+1","v":11},{"$f":"MAX($B$7:B63)+1","v":"2027-02-17"},{"$f":"WEEKDAY(B67)","v":4},"PM","コヒマ科学大学","着",null,"【コヒマ科学大学表敬訪問及び打ち合せ】"]
[null,null,null,null,"コヒマ科学大学","発"]
[null,null,null,null,"ホテル","着",null,null,null,null,null,null,null,null,null,null,"コヒマ","泊"]
[null,null,null,null,null,null,null,null,null,null,null,null,null,null,null,null,null,null,"車両（５人乗り）×終日４台　　　　   　　ミニバス（10人乗り）×終日１台　　　　　　　　　　　　"]
[null,null,null,"AM","コヒマ","発"]
[{"$f":"MAX($A$7:A68)+1","v":12},{"$f":"MAX($B$7:B68)+1","v":"2027-02-18"},{"$f":"WEEKDAY(B72)","v":5},"AM","ディマプール","着/発",null,"（インド国内線）"]
[null,null,null,"PM","コルカタ","着/発"]
[null,null,null,null,"ホテル","着"]
[]
[null,null,null,null,null,null,null,null,null,null,null,null,null,null,null,null,"コルカタ","泊"]
[null,null,null,"AM","ホテル","発",null,null,null,null,null,null,null,null,null,null,null,null,"ミニバス（10人乗り）×終日１台"]
[null,null,null,null,"AnSI本部","着"]
[null,null,null,null,"AnSI本部","発"]
[{"$f":"MAX($A$7:A76)+1","v":13},{"$f":"MAX($B$7:B72)+1","v":"2027-02-19"},{"$f":"WEEKDAY(B80)","v":6},"PM","在コルカタ日本国総領事館","着"]
[null,null,null,null,"在コルカタ日本国総領事館","発"]
[null,null,null,null,"ホテル","着",null,null,null,null,null,null,null,null,null,null,"コルカタ","泊"]
[null,null,null,null,null,null,null,null,null,null,null,null,null,null,null,null,null,null,"ミニバス(10人乗り)×終日１台　　　　　　　ミニバス(10人乗り)×送迎１台"]
[null,null,null,"AM","ホテル","発"]
[{"$f":"MAX($A$7:A81)+1","v":14},{"$f":"MAX($B$7:B80)+1","v":"2027-02-20"},{"$f":"WEEKDAY(B85)","v":7},"PM","コルカタ","着/発",null,"（インド国内線）"]
[null,null,null,"PM","デリー","着/発"]
[null,null,null,null,"ホテル","着"]
[null,null,null,null,null,null,null,null,null,null,null,null,null,null,null,null,"デリー","泊"]
[null,null,null,null,null,null,null,null,null,null,null,null,null,null,null,null,null,null,"ミニバス（10人乗り）×送迎１台　"]
[null,null,null,null,"ホテル","発"]
[null,null,null,"PM"]
[{"$f":"MAX($A$7:A88)+1","v":15},{"$f":"MAX($B$7:B90)+1","v":"2027-02-21"},{"$f":"WEEKDAY(B92)","v":1},"PM","デリー","着/発",null,"(NH〇〇)"]
[]
[null,null,null,null,null,null,null,null,null,null,null,null,null,null,null,null,"機中","泊"]
[]
[null,null,null,"AM","羽田","着/発",null,"【帰国後の各種手続き】"]
[{"$f":"MAX($A$7:A93)+1","v":16},{"$f":"MAX($B$7:B95)+1","v":"2027-02-22"},{"$f":"WEEKDAY(B97)","v":2}]
[null,null,null,"PM","ホテル","着"]
[null,null,null,null,null,null,null,null,null,null,null,null,null,null,null,null,"都内","泊"]
[]
[null,null,null,"AM","ホテル","発"]
[{"$f":"MAX($A$7:A98)+1","v":17},{"$f":"MAX($B$7:B100)+1","v":"2027-02-23"},{"$f":"WEEKDAY(B102)","v":3},null,"千鳥ヶ淵","着"]
[null,null,null,null,"現地解散",null,null,"【解団式】"]
[]
["　現地事情により日程は変更することがある。"]